fUST/lending_fUST_20240119
["ID","MTS","AMOUNT","RATE_DAILY","PERIOD"]
[312120232,1705647052428,-300.0,0.00035616,2]
[312120233,1705647052437,-768.28,0.00035616,3]
[312120234,1705647052447,-500.0,0.00035616,3]
[312120235,1705647052456,-577.34368462,0.00035616,3]
[312120236,1705647052466,-2019.68,0.00035616,3]
[312120237,1705647052476,-754.42,0.00035616,3]
[312120238,1705647052485,-500.0,0.00035616,3]
[312120239,1705647052495,-1468.24,0.00035616,3]
[312120240,1705647052504,-830.03,0.00035616,3]
[312120241,1705647052514,-628.5,0.00035616,3]
[312120242,1705647052524,-916.7,0.00035616,3]
[312120243,1705647052533,-500.0,0.00035616,3]
[312120244,1705647052543,-546.35,0.00035616,3]
[312120245,1705647052553,-2693.85,0.00035616,3]
[312120246,1705647052562,-500.0,0.00035616,3]
[312120247,1705647052571,-1172.42,0.00035616,3]
[312120248,1705647052581,-1145.1,0.00035616,3]
[312120249,1705647052590,-1066.31,0.00035616,3]
[312120250,1705647052600,-8928.72,0.00035616,3]
[312120251,1705647052610,-13936.93,0.00035616,3]
[312120252,1705647052619,-1325.8,0.00035616,3]
[312120253,1705647052628,-1497.72,0.00035616,3]
[312120254,1705647052638,-500.0,0.00035616,3]
[312120255,1705647052648,-4387.64,0.00035616,3]
[312120256,1705647052659,-500.0,0.00035616,3]
[312120257,1705647052669,-500.0,0.00035616,3]
[312120258,1705647052678,-500.0,0.00035616,3]
[312120259,1705647052689,-612.47,0.00035616,3]
[312120260,1705647052699,-2579.58,0.00035616,3]
[312120261,1705647052709,-500.0,0.00035616,3]
[312120262,1705647052719,-554.58,0.00035616,3]
[312120263,1705647052729,-2773.43,0.00035616,3]
[312120264,1705647052738,-3105.32,0.00035616,3]
[312120265,1705647052748,-500.0,0.00035616,3]
[312120266,1705647052758,-731.41,0.00035616,3]
[312120267,1705647052768,-212.372706,0.00035616,120]
[312120268,1705647052777,-1524.30131296,0.00035676,2]
[312120269,1705647052787,-280.0,0.00035694,15]
[312120270,1705647052797,-255.22923267,0.00035701,7]
[312120271,1705647052806,-768.28,0.0003589,3]
[312120272,1705647052816,-500.0,0.0003589,3]
[312120273,1705647052826,-2019.68,0.0003589,3]
[312120274,1705647052835,-754.42,0.0003589,3]
[312120275,1705647052845,-500.0,0.0003589,3]
[312120276,1705647052855,-1468.24,0.0003589,3]
[312120277,1705647052940,-830.03,0.0003589,3]
[312120278,1705647052951,-916.7,0.0003589,3]
[312120279,1705647052961,-424.76,0.0003589,3]
[312120280,1705647052971,-546.35,0.0003589,3]
[312120281,1705647052981,-2693.85,0.0003589,3]
[312120282,1705647052990,-500.0,0.0003589,3]
[312120283,1705647052999,-1172.42,0.0003589,3]
[312120284,1705647053009,-1145.1,0.0003589,3]
[312120285,1705647053019,-1066.31,0.0003589,3]
[312120286,1705647053028,-8928.72,0.0003589,3]
[312120287,1705647053038,-13936.93,0.0003589,3]
[312120288,1705647053047,-1325.8,0.0003589,3]
[312120289,1705647053057,-1497.72,0.0003589,3]
[312120290,1705647053067,-500.0,0.0003589,3]
[312120291,1705647053076,-4387.64,0.0003589,3]
[312120292,1705647053085,-500.0,0.0003589,3]
[312120293,1705647053095,-500.0,0.0003589,3]
[312120294,1705647053105,-500.0,0.0003589,3]
[312120295,1705647053115,-612.47,0.0003589,3]
[312120296,1705647053124,-2579.58,0.0003589,3]
[312120297,1705647053134,-500.0,0.0003589,3]
[312120298,1705647053143,-554.58,0.0003589,3]
[312120299,1705647053153,-2773.43,0.0003589,3]
[312120300,1705647053164,-3105.32,0.0003589,3]
[312120301,1705647053173,-500.0,0.0003589,3]
[312120302,1705647053182,-731.41,0.0003589,3]
[312120303,1705647053191,-331.265426,0.0003589,2]
[312120304,1705647053200,-331.265426,0.0003589,2]
[312120305,1705647053209,-172.679815,0.0003589,2]
[312120306,1705647053219,-1500.0,0.000361,2]
[312120307,1705647053228,-151.0,0.00036105,4]
[312120308,1705647053237,-768.28,0.00036164,3]
[312120309,1705647053247,-500.0,0.00036164,3]
[312120310,1705647053256,-2019.68,0.00036164,3]
[312120311,1705647053266,-754.42,0.00036164,3]
[312120312,1705647053276,-500.0,0.00036164,3]
[312120313,1705647053285,-1468.24,0.00036164,3]
[312120314,1705647053294,-830.03,0.00036164,3]
[312120315,1705647053303,-916.7,0.00036164,3]
[312120316,1705647053313,-546.35,0.00036164,3]
[312120317,1705647053322,-2693.85,0.00036164,3]
[312120318,1705647053331,-1172.42,0.00036164,3]
[312120319,1705647053341,-1145.1,0.00036164,3]
[312120320,1705647053351,-500.0,0.00036164,3]
[312120321,1705647053360,-1066.31,0.00036164,3]
[312120322,1705647053370,-8928.72,0.00036164,3]
[312120323,1705647053379,-13936.93,0.00036164,3]
[312120324,1705647053389,-1325.8,0.00036164,3]
[312120325,1705647053398,-1497.72,0.00036164,3]
[312120326,1705647053409,-500.0,0.00036164,3]
[312120327,1705647053418,-4387.64,0.00036164,3]
[312120328,1705647053427,-500.0,0.00036164,3]
[312120329,1705647053436,-500.0,0.00036164,3]
[312120330,1705647053446,-500.0,0.00036164,3]
[312120331,1705647053455,-612.47,0.00036164,3]
[312120332,1705647053464,-2579.58,0.00036164,3]
[312120333,1705647053474,-500.0,0.00036164,3]
[312120334,1705647053483,-554.58,0.00036164,3]
[312120335,1705647053493,-2773.43,0.00036164,3]
[312120336,1705647053503,-3105.32,0.00036164,3]
[312120337,1705647053512,-385.57762665,0.00036164,3]
[312120338,1705647053522,-731.41,0.00036164,3]
[312120339,1705647053531,-156.84747797,0.00036175,7]
[312120340,1705647053540,-154.12939898,0.00036191,7]
[312120341,1705647053550,-171.0,0.00036247,2]
[312120342,1705647053559,-15866.12831674,0.000364,7]
[312120343,1705647053569,-768.28,0.00036438,3]
[312120344,1705647053578,-500.0,0.00036438,3]
[312120345,1705647053587,-2019.68,0.00036438,3]
[312120346,1705647053597,-754.42,0.00036438,3]
[312120347,1705647053606,-500.0,0.00036438,3]
[312120348,1705647053616,-1468.24,0.00036438,3]
[312120349,1705647053625,-830.03,0.00036438,3]
[312120350,1705647053634,-916.7,0.00036438,3]
[312120351,1705647053643,-546.35,0.00036438,3]
[312120352,1705647053654,-2693.85,0.00036438,3]
[312120353,1705647053665,-1172.42,0.00036438,3]
[312120354,1705647053674,-1145.1,0.00036438,3]
[312120355,1705647053683,-574.75048408,0.00036438,3]
[312120356,1705647053693,-1066.31,0.00036438,3]
[312120357,1705647053702,-8928.72,0.00036438,3]
[312120358,1705647053712,-13936.93,0.00036438,3]
[312120359,1705647053721,-1325.8,0.00036438,3]
[312120360,1705647053731,-1497.72,0.00036438,3]
[312120361,1705647053740,-509.08025426,0.00036438,3]
[312120362,1705647053750,-4387.64,0.00036438,3]
[312120363,1705647053760,-500.0,0.00036438,3]
[312120364,1705647053770,-500.0,0.00036438,3]
[312120365,1705647053779,-500.0,0.00036438,3]
[312120366,1705647053789,-612.47,0.00036438,3]
[312120367,1705647053798,-2579.58,0.00036438,3]
[312120368,1705647053807,-500.0,0.00036438,3]
[312120369,1705647053817,-554.58,0.00036438,3]
[312120370,1705647053826,-2773.43,0.00036438,3]
[312120371,1705647053835,-3105.32,0.00036438,3]
[312120372,1705647053845,-731.41,0.00036438,3]
[312120373,1705647053854,-331.265426,0.00036438,2]
[312120374,1705647053865,-331.26542,0.00036438,2]
[312120375,1705647053875,-500.0,0.00036457,2]
[312120376,1705647053887,-500.0,0.00036457,2]
[312120377,1705647053896,-500.0,0.00036457,2]
[312120378,1705647053907,-500.0,0.00036457,2]
[312120379,1705647053917,-500.0,0.00036457,2]
[312120380,1705647053927,-154.57833593,0.00036678,7]
[312120381,1705647053937,-768.28,0.00036712,3]
[312120382,1705647053946,-500.0,0.00036712,3]
[312120383,1705647054009,-2019.68,0.00036712,3]
[312120384,1705647054020,-754.42,0.00036712,3]
[312120385,1705647054030,-500.0,0.00036712,3]
[312120386,1705647054039,-1468.24,0.00036712,3]
[312120387,1705647054049,-830.03,0.00036712,3]
[312120388,1705647054059,-916.7,0.00036712,3]
[312120389,1705647054069,-546.35,0.00036712,3]
[312120390,1705647054078,-2693.85,0.00036712,3]
[312120391,1705647054088,-1172.42,0.00036712,3]
[312120392,1705647054097,-1145.1,0.00036712,3]
[312120393,1705647054106,-1066.31,0.00036712,3]
[312120394,1705647054116,-8928.72,0.00036712,3]
[312120395,1705647054125,-13936.93,0.00036712,3]
[312120396,1705647054135,-1325.8,0.00036712,3]
[312120397,1705647054145,-1497.72,0.00036712,3]
[312120398,1705647054154,-4387.64,0.00036712,3]
[312120399,1705647054167,-500.0,0.00036712,3]
[312120400,1705647054177,-500.0,0.00036712,3]
[312120401,1705647054187,-500.0,0.00036712,3]
[312120402,1705647054197,-612.47,0.00036712,3]
[312120403,1705647054207,-2579.58,0.00036712,3]
[312120404,1705647054217,-500.0,0.00036712,3]
[312120405,1705647054227,-554.58,0.00036712,3]
[312120406,1705647054236,-2773.43,0.00036712,3]
[312120407,1705647054246,-3105.32,0.00036712,3]
[312120408,1705647054256,-731.41,0.00036712,3]
[312120409,1705647054266,-172.679815,0.00036712,2]
[312120410,1705647054275,-167.187099,0.00036712,2]
[312120411,1705647054284,-25470.37502578,0.00036846,7]
[312120412,1705647054294,-154.12939898,0.00036904,7]
[312120413,1705647054303,-154.57833593,0.0003697,7]
[312120414,1705647054312,-768.28,0.00036986,3]
[312120415,1705647054322,-500.0,0.00036986,3]
[312120416,1705647054332,-2019.68,0.00036986,3]
[312120417,1705647054341,-754.42,0.00036986,3]
[312120418,1705647054352,-500.0,0.00036986,3]
[312120419,1705647054362,-1468.24,0.00036986,3]
[312120420,1705647054372,-830.03,0.00036986,3]
[312120421,1705647054381,-916.7,0.00036986,3]
[312120422,1705647054390,-546.35,0.00036986,3]
[312120423,1705647054400,-2693.85,0.00036986,3]
[312120424,1705647054411,-1172.42,0.00036986,3]
[312120425,1705647054421,-1145.1,0.00036986,3]
[312120426,1705647054430,-1066.31,0.00036986,3]
[312120427,1705647054439,-8928.72,0.00036986,3]
[312120428,1705647054449,-13936.93,0.00036986,3]
[312120429,1705647054458,-1325.8,0.00036986,3]
[312120430,1705647054468,-1497.72,0.00036986,3]
[312120431,1705647054477,-4387.64,0.00036986,3]
[312120432,1705647054486,-500.0,0.00036986,3]
[312120433,1705647054496,-500.0,0.00036986,3]
[312120434,1705647054505,-500.0,0.00036986,3]
[312120435,1705647054514,-612.47,0.00036986,3]
[312120436,1705647054523,-2579.58,0.00036986,3]
[312120437,1705647054533,-500.0,0.00036986,3]
[312120438,1705647054542,-554.58,0.00036986,3]
[312120439,1705647054552,-2773.43,0.00036986,3]
[312120440,1705647054561,-3105.32,0.00036986,3]
[312120441,1705647054570,-731.41,0.00036986,3]
[312120442,1705647054580,-1537.95493913,0.00036989,20]
[312120443,1705647054589,-678.0,0.000371,30]
[312120444,1705647054599,-1500.0,0.000371,2]
[312120445,1705647054608,-150.0,0.000371,11]
[312120446,1705647054617,-245.045733,0.000371,11]
[312120447,1705647054627,-678.0,0.0003711,30]
[312120448,1705647054636,-154.57833593,0.00037137,7]
[312120449,1705647054646,-481274.51184274,0.0003718,2]
[312120450,1705647054655,-768.28,0.0003726,3]
[312120451,1705647054666,-500.0,0.0003726,3]
[312120452,1705647054676,-2019.68,0.0003726,3]
[312120453,1705647054686,-754.42,0.0003726,3]
[312120454,1705647054695,-354.82809168,0.0003726,3]
[312120455,1705647054704,-1468.24,0.0003726,3]
[312120456,1705647054713,-830.03,0.0003726,3]
[312120457,1705647054723,-916.7,0.0003726,3]
[312120458,1705647054733,-546.35,0.0003726,3]
[312120459,1705647054742,-2693.85,0.0003726,3]
[312120460,1705647054751,-1172.42,0.0003726,3]
[312120461,1705647054760,-1145.1,0.0003726,3]
[312120462,1705647054770,-1066.31,0.0003726,3]
[312120463,1705647054780,-8928.72,0.0003726,3]
[312120464,1705647054789,-13936.93,0.0003726,3]
[312120465,1705647054799,-1325.8,0.0003726,3]
[312120466,1705647054808,-1497.72,0.0003726,3]
[312120467,1705647054817,-4387.64,0.0003726,3]
[312120468,1705647054827,-500.0,0.0003726,3]
[312120469,1705647054836,-500.0,0.0003726,3]
[312120470,1705647054845,-500.0,0.0003726,3]
[312120471,1705647054855,-612.47,0.0003726,3]
[312120472,1705647054866,-2579.58,0.0003726,3]
[312120473,1705647054876,-554.58,0.0003726,3]
[312120474,1705647054888,-2773.43,0.0003726,3]
[312120475,1705647054898,-500.0,0.0003726,3]
[312120476,1705647054910,-3105.32,0.0003726,3]
[312120477,1705647054918,-731.41,0.0003726,3]
[312120478,1705647054927,-156.84747797,0.00037313,7]
[312120479,1705647054937,-150.0,0.00037336,2]
[312120480,1705647054996,-150.0,0.00037336,2]
[312120481,1705647055005,-1000.0,0.00037426,10]
[312120482,1705647055014,-768.28,0.00037534,3]
[312120483,1705647055023,-466.44969418,0.00037534,3]
[312120484,1705647055033,-2019.68,0.00037534,3]
[312120485,1705647055042,-754.42,0.00037534,3]
[312120486,1705647055052,-830.03,0.00037534,3]
[312120487,1705647055061,-1468.24,0.00037534,3]
[312120488,1705647055070,-916.7,0.00037534,3]
[312120489,1705647055079,-546.35,0.00037534,3]
[312120490,1705647055089,-2693.85,0.00037534,3]
[312120491,1705647055098,-1172.42,0.00037534,3]
[312120492,1705647055107,-1145.1,0.00037534,3]
[312120493,1705647055117,-1066.31,0.00037534,3]
[312120494,1705647055126,-8928.72,0.00037534,3]
[312120495,1705647055135,-13936.93,0.00037534,3]
[312120496,1705647055145,-1325.8,0.00037534,3]
[312120497,1705647055154,-1497.72,0.00037534,3]
[312120498,1705647055164,-4387.64,0.00037534,3]
[312120499,1705647055174,-500.0,0.00037534,3]
[312120500,1705647055183,-500.0,0.00037534,3]
[312120501,1705647055192,-500.0,0.00037534,3]
[312120502,1705647055202,-612.47,0.00037534,3]
[312120503,1705647055211,-2579.58,0.00037534,3]
[312120504,1705647055220,-554.58,0.00037534,3]
[312120505,1705647055229,-2773.43,0.00037534,3]
[312120506,1705647055238,-500.0,0.00037534,3]
[312120507,1705647055248,-3105.32,0.00037534,3]
[312120508,1705647055258,-731.41,0.00037534,3]
[312120509,1705647055268,-172.679815,0.00037534,2]
[312120510,1705647055277,-154.57833593,0.00037588,7]
[312120511,1705647055287,-151.0,0.00037721,4]
[312120512,1705647055296,-314.0,0.00037777,7]
[312120513,1705647055305,-768.28,0.00037808,3]
[312120514,1705647055314,-2019.68,0.00037808,3]
[312120515,1705647055323,-754.42,0.00037808,3]
[312120516,1705647055334,-830.03,0.00037808,3]
[312120517,1705647055343,-1468.24,0.00037808,3]
[312120518,1705647055353,-916.7,0.00037808,3]
[312120519,1705647055362,-546.35,0.00037808,3]
[312120520,1705647055372,-2693.85,0.00037808,3]
[312120521,1705647055382,-1172.42,0.00037808,3]
[312120522,1705647055391,-1145.1,0.00037808,3]
[312120523,1705647055400,-1066.31,0.00037808,3]
[312120524,1705647055415,-8928.72,0.00037808,3]
[312120525,1705647055435,-13936.93,0.00037808,3]
[312120526,1705647055452,-1325.8,0.00037808,3]
[312120527,1705647055470,-1497.72,0.00037808,3]
[312120528,1705647055489,-4387.64,0.00037808,3]
[312120529,1705647055504,-500.0,0.00037808,3]
[312120530,1705647055521,-574.61548381,0.00037808,3]
[312120531,1705647055538,-267.81303238,0.00037808,3]
[312120532,1705647055552,-612.47,0.00037808,3]
[312120533,1705647055571,-2579.58,0.00037808,3]
[312120534,1705647055588,-554.58,0.00037808,3]
[312120535,1705647055603,-2773.43,0.00037808,3]
[312120536,1705647055621,-500.0,0.00037808,3]
[312120537,1705647055638,-3105.32,0.00037808,3]
[312120538,1705647055651,-731.41,0.00037808,3]
[312120539,1705647055667,-26514.9072654,0.00037854,2]
[312120540,1705647055681,-5076.0,0.00037867,60]
[312120541,1705647055697,-160.0,0.00037872,3]
[312120542,1705647055710,-160.63126229,0.00037879,7]
[312120543,1705647055724,-678.79,0.00037979,30]
[312120544,1705647055738,-89869.89566371,0.00037982,30]
[312120545,1705647055835,-2073.10186576,0.00037982,30]
[312120546,1705647056009,-500.0,0.00032876,2]
[312120547,1705647056019,-4186.39,0.0003314,3]
[312120548,1705647056028,-295.69861919,0.0003315,3]
[312120549,1705647056138,-500.0,0.00033424,3]
[312120550,1705647056159,-348492.08596302,0.00037982,30]
[312120576,1705648031092,-561.34972168,0.00023916,2]
[312120577,1705648031247,-239.16358008,0.00023917,2]
[312120578,1705648031268,-212.46942027,0.00023918,2]
[312120579,1705648054094,-460.17684779,0.00023915,2]
[312120580,1705648149346,-165.04572519,0.00023914,2]
[312120581,1705648149372,-59607.80704029,0.00023915,2]
[312120582,1705648149392,-5867.13913394,0.00023917,2]
[312120583,1705648149413,-616.42934825,0.00023918,2]
[312120584,1705648149435,-337.921481,0.0002392,2]
[312120585,1705648149457,-167.915799,0.00024777,2]
[312120586,1705648149478,-3511.23,0.00024822,3]
[312120587,1705648149513,-4213.47,0.00024832,3]
[312120588,1705648149535,-24900.0,0.00024842,2]
[312120589,1705648149555,-8230.52563531,0.00024999,2]
[312120590,1705648152087,-555.04009963,0.00023913,2]
[312120591,1705648152108,-5969.55228858,0.00024999,2]
[312120592,1705648152127,-701.41982279,0.00025,2]
[312120593,1705648152147,-1154.33230643,0.00025,2]
[312120594,1705648152167,-1001.68368402,0.00025,2]
[312120595,1705648152191,-4243.91665881,0.00025,2]
[312120596,1705648152212,-200.0,0.00027325,15]
[312120597,1705648152233,-15614.83727926,0.000275,2]
[312120598,1705648152252,-167.915799,0.00028155,2]
[312120599,1705648152273,-535.87493016,0.00028621,2]
[312120600,1705648152294,-266.09151424,0.00028621,2]
[312120601,1705648152315,-125.40586287,0.00028621,2]
[312120615,1705648233138,-230.9549782,0.00023914,2]
[312120616,1705648233171,-61.31858855,0.00028621,2]
[312120617,1705648233192,-305.51246618,0.00028621,2]
[312120618,1705648233222,-3837.22483801,0.00028621,2]
[312120619,1705648233246,-930.71828394,0.00028749,2]
[312120620,1705648233266,-2305.15,0.0002999,3]
[312120622,1705648233286,-628.88037564,0.0002999,3]
[312120720,1705648242229,-3663.13,0.0002999,3]
[312120721,1705648242245,-3052.61,0.0002999,3]
[312120722,1705648242265,-2543.84,0.0002999,3]
[312120723,1705648242292,-965.8415015,0.00029997,2]
[312120724,1705648242308,-484.79623995,0.00029997,2]
[312120725,1705648242325,-1657.97082825,0.00029997,5]
[312120733,1705648247673,-1317.48709349,0.00028621,2]
[312120734,1705648247696,-329.81064053,0.00029997,5]
[312120812,1705648258512,-305.51246618,0.00028621,2]
[312120813,1705648258530,-207.63985174,0.000299,2]
[312120815,1705648258552,-2747.68,0.0002999,3]
[312120816,1705648258568,-719.64415369,0.00029997,5]
[312120817,1705648258584,-1430.14551075,0.00029997,2]
[312120818,1705648258603,-595.81818667,0.00029997,2]
[312120819,1705648258622,-155.17751515,0.00029998,2]
[312120820,1705648258642,-181.79050164,0.00029998,2]
[312120821,1705648258654,-7945.19667066,0.00029998,2]
[312120822,1705648258674,-155.28868277,0.00029998,2]
[312120823,1705648258696,-841.33530867,0.00029998,2]
[312120824,1705648258715,-154.9690062,0.00029998,10]
[312120825,1705648258738,-5003.17403652,0.00029998,2]
[312120826,1705648258760,-295.48284636,0.00029998,2]
[312120827,1705648258772,-267.45462191,0.00029998,2]
[312120828,1705648258798,-265.226858,0.00029998,2]
[312120829,1705648258813,-1830.24193625,0.00029998,2]
[312120830,1705648258826,-185.19859237,0.00029998,2]
[312120831,1705648258854,-121.75764017,0.00029998,2]
[312120832,1705648258875,-163.91944835,0.00029998,2]
[312120833,1705648258896,-560.40237622,0.00029998,2]
[312120834,1705648258915,-1197.20181474,0.00029998,2]
[312120835,1705648258938,-170.79924496,0.00029998,2]
[312120836,1705648258958,-2481.56404786,0.00029998,7]
[312120837,1705648258980,-178.53949807,0.00029998,2]
[312120838,1705648258998,-2102.11817883,0.00029998,2]
[312120839,1705648259013,-230.52058363,0.00029998,2]
[312120840,1705648259033,-350.41568925,0.00029998,2]
[312120841,1705648259053,-425.69649895,0.00029998,2]
[312120842,1705648259068,-159.19735556,0.00029998,2]
[312120843,1705648259100,-421.61693152,0.00029998,2]
[312120844,1705648259117,-342.32114504,0.00029998,2]
[312120845,1705648259149,-309.81412391,0.00029998,2]
[312120846,1705648259168,-1034.20606324,0.00029999,2]
[312120847,1705648259189,-4880.12088438,0.00029999,2]
[312120848,1705648259207,-154.98450155,0.00029999,2]
[312120849,1705648259238,-500.0,0.00029999,2]
[312120850,1705648259264,-500.0,0.00029999,2]
[312120851,1705648259289,-500.0,0.00029999,2]
[312120852,1705648259317,-256.56663936,0.00029999,2]
[312120853,1705648259336,-623.80335828,0.00029999,2]
[312120854,1705648259363,-342.8525187,0.00029999,2]
[312120855,1705648259382,-462.67994292,0.00029999,4]
[312120856,1705648259398,-431.59492888,0.00029999,4]
[312120857,1705648259421,-355.6952722,0.00029999,4]
[312120858,1705648259440,-500.0,0.00029999,2]
[312120859,1705648259458,-500.0,0.00029999,2]
[312120860,1705648259587,-500.0,0.00029999,2]
[312120861,1705648259610,-194.41332875,0.0003,3]
[312120862,1705648259631,-1919.51264673,0.0003,3]
[312120863,1705648259647,-3906.56710416,0.0003,30]
[312120864,1705648260030,-21039.60513473,0.0003,30]
[312120865,1705648260048,-595598.19271494,0.0003,30]
[312120866,1705648260082,-89651.03968036,0.0003,30]
[312120878,1705648426163,-929.3749549,0.00029998,5]
[312120879,1705648441364,620.6250451,0.00029997,7]
[312120898,1705649239105,-199.14321435,0.00023898,2]
[312120899,1705649239131,-1293.1158294,0.00023899,2]
[312120900,1705649239166,-998.65496002,0.00023899,2]
[312120901,1705649239240,-439.58570389,0.00023899,2]
[312120902,1705649239335,-151.27904279,0.000239,2]
[312120903,1705649239386,-151.27904279,0.000239,2]
[312120904,1705649239417,-151.27904279,0.000239,2]
[312120905,1705649239445,-151.27904279,0.000239,2]
[312120906,1705649239472,-151.27904279,0.000239,2]
[312120907,1705649239496,-151.27904279,0.000239,2]
[312120908,1705649239535,-151.27904279,0.000239,2]
[312120909,1705649239575,-14.25141709,0.000239,2]
[312120913,1705649350110,-260.99609825,0.00023892,2]
[312120914,1705649350143,-301.77611122,0.00023893,2]
[312120915,1705649350170,-191.31512244,0.00023893,2]
[312120916,1705649350206,-4811.28224285,0.00023893,2]
[312120917,1705649350243,-253.97986618,0.00023894,2]
[312120918,1705649350281,-1160.53170858,0.00023896,2]
[312120919,1705649350320,-137.0276257,0.000239,2]
[312120920,1705649350358,-151.27904279,0.000239,2]
[312120921,1705649350408,-151.27904,0.000239,2]
[312120922,1705649350445,-551.16425847,0.000239,2]
[312120933,1705649362103,-2996.33579383,0.00023892,2]
[312120934,1705649362134,-4.69387548,0.000239,2]
[312120935,1705649362168,-168.96074,0.00024572,2]
[312120936,1705649362219,-890.1973123,0.0002572,2]
[312120937,1705649362252,-1880.54452508,0.00026007,2]
[312120974,1705649433490,-505.89199862,0.00026007,2]
[312120975,1705649433508,-240.55406809,0.00026348,2]
[312120976,1705649433550,-200.75891573,0.00026349,2]
[312120977,1705649433564,-211.89190764,0.00026349,2]
[312120978,1705649433583,-202.971678,0.00027223,2]
[312120979,1705649433599,-24900.0,0.00027236,2]
[312120980,1705649433624,-508.10043766,0.000279,2]
[312120981,1705649433643,-375.16526378,0.00028521,2]
[312120982,1705649433672,-200.0,0.00028605,15]
[312120983,1705649433698,-328.4835946,0.00028798,2]
[312120984,1705649433722,-306.0,0.00029178,2]
[312120985,1705649433747,-153.0,0.00029178,2]
[312120986,1705649433770,-153.0,0.00029178,2]
[312120987,1705649433782,-153.0,0.00029178,2]
[312120988,1705649433796,-327.9954237,0.00029315,2]
[312120989,1705649433825,-457.5024889,0.00029315,2]
[312120990,1705649433852,-199.0432224,0.00029315,2]
[312120991,1705649433867,-264.7674032,0.00029315,2]
[312120992,1705649433886,-153.0,0.00029315,2]
[312120993,1705649433905,-153.0,0.00029315,2]
[312120994,1705649433937,-360.4535173,0.00029315,2]
[312120995,1705649433957,-434.3626415,0.00029315,2]
[312120996,1705649433975,-306.0,0.00029315,2]
[312120997,1705649433987,-199.0432224,0.00029315,2]
[312120998,1705649434004,-306.5914831,0.00029315,2]
[312120999,1705649434029,-306.0,0.00029315,2]
[312121000,1705649434047,-153.0,0.00029315,2]
[312121001,1705649434062,-153.0,0.00029315,2]
[312121002,1705649434081,-153.0,0.00029315,2]
[312121003,1705649434108,-153.0,0.00029315,2]
[312121004,1705649434131,-2132.99730345,0.00029396,2]
[312121005,1705649434143,-153.034734,0.00029589,2]
[312121006,1705649434179,-153.0,0.00029589,2]
[312121007,1705649434200,-153.0,0.00029589,2]
[312121008,1705649434219,-6318.52553758,0.00029698,2]
[312121009,1705649434253,-5561.64,0.00029988,3]
[312121010,1705649434266,-4634.7,0.00029988,3]
[312121011,1705649434293,-3862.25,0.00029988,3]
[312121012,1705649434319,-3963.07176261,0.00029996,2]
[312121013,1705649434344,-549.40930506,0.00029996,2]
[312121014,1705649434363,-315.87160079,0.00029996,2]
[312121015,1705649434385,-254.25203181,0.00029996,2]
[312121016,1705649434399,-2345.52533632,0.00029997,7]
[312121017,1705649434416,-3059.16147441,0.00029997,2]
[312121018,1705649434428,-274.15864809,0.00029998,2]
[312121019,1705649434447,-7088.24982685,0.00029998,2]
[312121020,1705649434458,-295.02158042,0.00029998,2]
[312121021,1705649434479,-154.95351395,0.00029998,2]
[312121022,1705649434491,-688.82444192,0.00029998,2]
[312121023,1705649434508,-1741.24664665,0.00029998,2]
[312121024,1705649434526,-164.65058158,0.00029998,2]
[312121025,1705649434540,-434.89647751,0.00029998,2]
[312121026,1705649434558,-300.68115955,0.00029998,2]
[312121027,1705649434582,-155.49562102,0.00029998,2]
[312121028,1705649434605,-7059.20846776,0.00029998,2]
[312121029,1705649434615,-208.82058628,0.00029998,2]
[312121030,1705649434626,-549.47321105,0.00029998,2]